lending/lending_fUSD_20240219
["ID","MTS","AMOUNT","RATE_DAILY","PERIOD"]
[314456580,1708367442939,-232.126709,0.0003993,14]
[314456582,1708367442949,-151.0,0.0003993,14]
[314456584,1708367442959,-151.0,0.0003993,14]
[314456586,1708367442969,-151.0,0.0003993,14]
[314456588,1708367442979,-167.941296,0.0003993,14]
[314456590,1708367442988,-167.941296,0.0003993,14]
[314456591,1708367442998,-151.0,0.0003993,2]
[314456592,1708367443007,-151.0,0.0003993,14]
[314456593,1708367443017,-151.0,0.0003993,14]
[314456594,1708367443026,-303.481413,0.0003993,14]
[314456595,1708367443035,-303.481413,0.0003993,14]
[314456596,1708367443045,-586.646416,0.0003993,14]
[314456597,1708367443054,-586.646416,0.0003993,14]
[314456598,1708367443064,-151.0,0.0003993,14]
[314456599,1708367443073,-357.651493,0.0003993,14]
[314456600,1708367443083,-301.483431,0.0003993,14]
[314456601,1708367443092,-357.651493,0.0003993,14]
[314456602,1708367443102,-301.483431,0.0003993,14]
[314456603,1708367443111,-197.637474,0.0003993,14]
[314456604,1708367443120,-151.0,0.0003993,14]
[314456605,1708367443129,-197.637474,0.0003993,14]
[314456606,1708367443139,-151.0,0.0003993,14]
[314456607,1708367443148,-285.525516,0.0003993,14]
[314456608,1708367443157,-151.0,0.0003993,14]
[314456609,1708367443167,-151.0,0.0003993,14]
[314456610,1708367443176,-194.11904,0.0003993,14]
[314456611,1708367443185,-151.0,0.0003993,14]
[314456612,1708367443194,-995.33519,0.0003993,14]
[314456613,1708367443204,-995.33519,0.0003993,14]
[314456614,1708367443214,-151.0,0.0003993,14]
[314456615,1708367443223,-151.0,0.0003993,14]
[314456616,1708367443232,-151.0,0.0003993,14]
[314456617,1708367443242,-151.0,0.0003993,14]
[314456618,1708367443251,-414.585662,0.0003993,14]
[314456619,1708367443261,-414.585662,0.0003993,14]
[314456620,1708367443270,-151.0,0.0003993,14]
[314456621,1708367443279,-151.0,0.0003993,14]
[314456622,1708367443289,-151.0,0.0003993,14]
[314456623,1708367443298,-151.0,0.0003993,14]
[314456624,1708367443307,-2079.901838,0.0003993,14]
[314456625,1708367443317,-2079.901838,0.0003993,14]
[314456626,1708367443326,-332.589934,0.0003993,14]
[314456628,1708367443336,-308.20164,0.0003993,14]
[314456630,1708367443344,-332.589934,0.0003993,14]
[314456632,1708367443354,-308.20164,0.0003993,14]
[314456633,1708367443363,-151.0,0.0003993,14]
[314456635,1708367443372,-151.0,0.0003993,14]
[314456637,1708367443382,-151.0,0.0003993,14]
[314456639,1708367443391,-170.239347,0.0003993,14]
[314456641,1708367443400,-170.239347,0.0003993,14]
[314456642,1708367443409,-151.0,0.0003993,14]
[314456643,1708367443419,-151.0,0.0003993,14]
[314456644,1708367443428,-151.0,0.0003993,14]
[314456645,1708367443438,-151.0,0.0003993,14]
[314456646,1708367443447,-151.0,0.0003993,14]
[314456647,1708367443457,-151.0,0.0003993,14]
[314456648,1708367443467,-151.0,0.0003993,14]
[314456649,1708367443477,-151.0,0.0003993,14]
[314456650,1708367443487,-172.799504,0.0003993,14]
[314456651,1708367443497,-151.0,0.0003993,14]
[314456652,1708367443506,-219.801149,0.0003993,14]
[314456653,1708367443516,-1881.758142,0.0003993,14]
[314456654,1708367443526,-895.549516,0.0003993,14]
[314456655,1708367443536,-2119.68059091,0.00039932,2]
[314456656,1708367443545,-210.0,0.00039984,4]
[314456657,1708367443555,-210.0,0.00039984,5]
[314456658,1708367443566,-565.37,0.0003999,3]
[314456659,1708367443576,-664.69780361,0.0004,10]
[314456660,1708367443586,-120290.67439038,0.0004,30]
[314456661,1708367443596,-2779.66160561,0.0004,7]
[314456662,1708367443605,-161.40792069,0.0004,2]
[314456663,1708367443616,-255.0,0.0004,12]
[314456664,1708367443630,-255.0,0.0004,12]
[314456665,1708367443640,-255.0,0.0004,12]
[314456666,1708367443649,-151.0,0.0004,14]
[314456667,1708367443659,-216.03967,0.0004,14]
[314456668,1708367443669,-5668.81164593,0.0004,3]
[314456670,1708367443679,-255.0,0.0004,12]
[314456673,1708367443690,-2456.11480159,0.0004,4]
[314456675,1708367443701,-255.0,0.0004,12]
[314456677,1708367443711,-255.0,0.0004,12]
[314456679,1708367443721,-232.96289219,0.0004,2]
[314456682,1708367443732,-232.96289219,0.0004,2]
[314456685,1708367443742,-232.96289219,0.0004,2]
[314456687,1708367443751,-232.96289219,0.0004,2]
[314456689,1708367443761,-232.96289219,0.0004,2]
[314456691,1708367443770,-232.96289219,0.0004,2]
[314456693,1708367443779,-232.96289219,0.0004,2]
[314456695,1708367443788,-232.96289219,0.0004,2]
[314456697,1708367443798,-232.96289219,0.0004,2]
[314456714,1708367443946,-232.96289219,0.0004,2]
[314456717,1708367443965,-232.96289219,0.0004,2]
[314456719,1708367443975,-232.96289219,0.0004,2]
[314456722,1708367443985,-232.96289219,0.0004,2]
[314456723,1708367443995,-232.96289219,0.0004,2]
[314456725,1708367444004,-232.96289219,0.0004,2]
[314456728,1708367444013,-232.96289219,0.0004,2]
[314456730,1708367444022,-232.96289219,0.0004,2]
[314456732,1708367444032,-232.96289219,0.0004,2]
[314456733,1708367444041,-232.96289219,0.0004,2]
[314456736,1708367444050,-232.96289219,0.0004,2]
[314456738,1708367444060,-232.96289219,0.0004,2]
[314456739,1708367444069,-232.96289219,0.0004,2]
[314456741,1708367444078,-232.96289219,0.0004,2]
[314456744,1708367444088,-232.96289219,0.0004,2]
[314456745,1708367444097,-232.96289219,0.0004,2]
[314456747,1708367444106,-232.96289219,0.0004,2]
[314456749,1708367444115,-232.96289219,0.0004,2]
[314456752,1708367444125,-232.96289219,0.0004,2]
[314456753,1708367444134,-232.96289219,0.0004,2]
[314456755,1708367444143,-232.96289219,0.0004,2]
[314456757,1708367444153,-232.96289219,0.0004,2]
[314456760,1708367444163,-232.96289219,0.0004,2]
[314456761,1708367444172,-232.96289219,0.0004,2]
[314456763,1708367444182,-232.96289219,0.0004,2]
[314456766,1708367444192,-232.96289219,0.0004,2]
[314456767,1708367444202,-232.96289219,0.0004,2]
[314456770,1708367444211,-232.96289219,0.0004,2]
[314456771,1708367444220,-232.96289219,0.0004,2]
[314456774,1708367444231,-232.96289219,0.0004,2]
[314456776,1708367444241,-232.96289219,0.0004,2]
[314456777,1708367444250,-232.96289219,0.0004,2]
[314456780,1708367444259,-232.96289219,0.0004,2]
[314456781,1708367444268,-232.96289219,0.0004,2]
[314456784,1708367444278,-232.96289219,0.0004,2]
[314456785,1708367444287,-232.96289219,0.0004,2]
[314456787,1708367444296,-232.96289219,0.0004,2]
[314456790,1708367444309,-232.96289219,0.0004,2]
[314456792,1708367444319,-232.96289219,0.0004,2]
[314456793,1708367444328,-232.96289219,0.0004,2]
[314456796,1708367444337,-232.96289219,0.0004,2]
[314456798,1708367444346,-232.96289219,0.0004,2]
[314456800,1708367444355,-232.96289219,0.0004,2]
[314456802,1708367444364,-232.96289219,0.0004,2]
[314456804,1708367444373,-232.96289219,0.0004,2]
[314456806,1708367444382,-232.96289219,0.0004,2]
[314456808,1708367444392,-232.96289219,0.0004,2]
[314456810,1708367444401,-232.96289219,0.0004,2]
[314456812,1708367444410,-232.96289219,0.0004,2]
[314456814,1708367444419,-232.96289219,0.0004,2]
[314456816,1708367444429,-232.96289219,0.0004,2]
[314456818,1708367444438,-232.96289219,0.0004,2]
[314456820,1708367444447,-232.96289219,0.0004,2]
[314456822,1708367444457,-232.96289219,0.0004,2]
[314456824,1708367444467,-232.96289219,0.0004,2]
[314456825,1708367444476,-232.96289219,0.0004,2]
[314456828,1708367444486,-232.96289219,0.0004,2]
[314456830,1708367444496,-232.96289219,0.0004,2]
[314456832,1708367444506,-232.96289219,0.0004,2]
[314456834,1708367444515,-232.96289219,0.0004,2]
[314456836,1708367444524,-232.96289219,0.0004,2]
[314456837,1708367444534,-232.96289219,0.0004,2]
[314456840,1708367444543,-232.96289219,0.0004,2]
[314456842,1708367444553,-232.96289219,0.0004,2]
[314456843,1708367444562,-232.96289219,0.0004,2]
[314456846,1708367444571,-232.96289219,0.0004,2]
[314456847,1708367444581,-232.96289219,0.0004,2]
[314456850,1708367444591,-232.96289219,0.0004,2]
[314456852,1708367444600,-232.96289219,0.0004,2]
[314456853,1708367444609,-232.96289219,0.0004,2]
[314456855,1708367444619,-232.96289219,0.0004,2]
[314456857,1708367444632,-232.96289219,0.0004,2]
[314456860,1708367444642,-232.96289219,0.0004,2]
[314456862,1708367444652,-232.96289219,0.0004,2]
[314456864,1708367444662,-232.96289219,0.0004,2]
[314456865,1708367444673,-232.96289219,0.0004,2]
[314456867,1708367444683,-232.96289219,0.0004,2]
[314456869,1708367444693,-232.96289219,0.0004,2]
[314456872,1708367444703,-232.96289219,0.0004,2]
[314456874,1708367444713,-232.96289219,0.0004,2]
[314456876,1708367444723,-232.96289219,0.0004,2]
[314456878,1708367444732,-232.96289219,0.0004,2]
[314456880,1708367444742,-232.96289219,0.0004,2]
[314456882,1708367444752,-232.96289219,0.0004,2]
[314456884,1708367444761,-232.96289219,0.0004,2]
[314456886,1708367444770,-232.96289219,0.0004,2]
[314456888,1708367444779,-232.96289219,0.0004,2]
[314456890,1708367444789,-232.96289219,0.0004,2]
[314456892,1708367444798,-232.96289219,0.0004,2]
[314456894,1708367444807,-232.96289219,0.0004,2]
[314456896,1708367444816,-232.96289219,0.0004,2]
[314456898,1708367444826,-2119.68059091,0.00040073,2]
[314456900,1708367444835,-180.34886,0.00040118,2]
[314456902,1708367444844,-591.1960522,0.00040122,2]
[314456904,1708367444853,-2119.68059091,0.00040214,2]
[314456905,1708367444862,-155.0,0.0004027,2]
[314456907,1708367444871,-1000.0,0.00040272,2]
[314456910,1708367444881,-750.0,0.00040273,2]
[314456911,1708367444890,-389.0,0.00040274,14]
[314456913,1708367444899,-2000.0,0.00040309,2]
[314456915,1708367444909,-200.0,0.00040309,2]
[314456917,1708367444918,-5000.0,0.00040313,3]
[314456919,1708367444928,-1259.98996334,0.0004035,3]
[314456922,1708367444937,-591.22510787,0.00040369,5]
[314456923,1708367444946,-150.0,0.00040375,2]
[314456926,1708367444956,-1500.0,0.000404,33]
[314456927,1708367444966,-959.74182477,0.00040443,9]
[314456929,1708367444975,-2316.86731913,0.00040478,14]
[314456932,1708367444985,-320.45143916,0.00040482,2]
[314456934,1708367444995,-700.52807626,0.00040497,32]
[314456936,1708367445005,-183.61668058,0.00040501,2]
[314456938,1708367445015,-365.70257011,0.0004057,10]
[314456940,1708367445024,-151.0,0.00040572,14]
[314456942,1708367445033,-151.0,0.00040572,14]
[314456944,1708367445042,-151.0,0.00040572,14]
[314456946,1708367445052,-151.0,0.00040572,7]
[314456948,1708367445061,-151.0,0.00040572,14]
[314456949,1708367445071,-301.285999,0.00040572,14]
[314456951,1708367445081,-221.05970928,0.00040587,2]
[314456954,1708367445091,-151.0,0.00040597,14]
[314456956,1708367445102,-151.0,0.00040597,14]
[314456958,1708367445113,-151.0,0.00040597,14]
[314456960,1708367445123,-151.0,0.00040597,14]
[314456962,1708367445132,-995.33519,0.00040597,14]
[314456965,1708367445151,-995.33519,0.00040597,14]
[314456967,1708367445162,-995.33519,0.00040597,14]
[314456969,1708367445171,-995.33519,0.00040597,14]
[314456971,1708367445181,-154.568955,0.00040597,14]
[314456973,1708367445190,-151.0,0.00040597,14]
[314456975,1708367445200,-151.0,0.00040597,14]
[314456977,1708367445210,-151.0,0.00040597,14]
[314456979,1708367445219,-151.0,0.00040597,14]
[314456982,1708367445229,-151.0,0.00040597,14]
[314456984,1708367445239,-151.0,0.00040597,14]
[314456986,1708367445248,-151.0,0.00040597,14]
[314456988,1708367445260,-414.585662,0.00040597,14]
[314456990,1708367445269,-414.585662,0.00040597,14]
[314456992,1708367445279,-414.585662,0.00040597,14]
[314456994,1708367445290,-414.585662,0.00040597,14]
[314456996,1708367445299,-414.585662,0.00040597,14]
[314456998,1708367445309,-414.585662,0.00040597,14]
[314457000,1708367445319,-151.0,0.00040597,14]
[314457003,1708367445329,-277.907112,0.00040597,14]
[314457005,1708367445338,-151.0,0.00040597,14]
[314457007,1708367445348,-151.0,0.00040597,14]
[314457009,1708367445357,-269.504935,0.00040597,14]
[314457011,1708367445366,-151.0,0.00040597,14]
[314457013,1708367445376,-151.0,0.00040597,14]
[314457015,1708367445386,-151.0,0.00040597,14]
[314457017,1708367445395,-151.0,0.00040597,14]
[314457019,1708367445405,-151.0,0.00040597,14]
[314457021,1708367445415,-151.0,0.00040597,14]
[314457023,1708367445425,-2079.901838,0.00040597,14]
[314457025,1708367445435,-2079.901838,0.00040597,14]
[314457027,1708367445444,-2079.901838,0.00040597,14]
[314457029,1708367445454,-2079.901838,0.00040597,14]
[314457031,1708367445463,-332.589934,0.00040597,14]
[314457033,1708367445472,-332.589934,0.00040597,14]
[314457035,1708367445482,-2079.901838,0.00040597,14]
[314457037,1708367445492,-2079.901838,0.00040597,14]
[314457039,1708367445502,-332.589934,0.00040597,14]
[314457041,1708367445512,-308.20164,0.00040597,14]
[314457043,1708367445522,-308.20164,0.00040597,14]
[314457045,1708367445532,-308.20164,0.00040597,14]
[314457047,1708367445542,-332.589934,0.00040597,14]
[314457049,1708367445551,-332.589934,0.00040597,14]
[314457051,1708367445561,-332.589934,0.00040597,14]
[314457054,1708367445571,-308.20164,0.00040597,14]
[314457056,1708367445580,-308.20164,0.00040597,14]
[314457058,1708367445590,-308.20164,0.00040597,14]
[314457060,1708367445599,-151.0,0.00040597,14]
[314457062,1708367445609,-151.0,0.00040597,14]
[314457064,1708367445620,-151.0,0.00040597,14]
[314457066,1708367445631,-170.239347,0.00040597,14]
[314457068,1708367445641,-170.239347,0.00040597,14]
[314457070,1708367445651,-170.239347,0.00040597,14]
[314457072,1708367445660,-170.239347,0.00040597,14]
[314457074,1708367445670,-170.239347,0.00040597,14]
[314457076,1708367445680,-170.239347,0.00040597,14]
[314457078,1708367445689,-151.0,0.00040597,14]
[314457080,1708367445700,-151.0,0.00040597,14]
[314457082,1708367445711,-237.875454,0.00040597,14]
[314457084,1708367445721,-151.0,0.00040597,14]
[314457086,1708367445731,-151.0,0.00040597,14]
[314457089,1708367445741,-151.0,0.00040597,14]
[314457091,1708367445750,-151.0,0.00040597,14]
[314457093,1708367445760,-151.0,0.00040597,14]
[314457095,1708367445770,-151.0,0.00040597,14]
[314457097,1708367445780,-151.0,0.00040597,14]
[314457099,1708367445790,-151.0,0.00040597,14]
[314457103,1708367445801,-258.955372,0.00040597,14]
[314457107,1708367445811,-293.17246,0.00040597,14]
[314457109,1708367445821,-151.0,0.00040597,14]
[314457111,1708367445831,-219.308008,0.00040597,14]
[314457113,1708367445840,-151.0,0.00040597,14]
[314457115,1708367445850,-273.15201,0.00040597,14]
[314457117,1708367445860,-151.0,0.00040597,14]
[314457119,1708367445869,-151.0,0.00040597,14]
[314457121,1708367445878,-151.0,0.00040597,14]
[314457123,1708367445888,-151.0,0.00040597,14]
[314457126,1708367445897,-179.655654,0.00040597,14]
[314457129,1708367445907,-1881.758142,0.00040597,14]
[314457132,1708367445916,-895.549516,0.00040597,14]
[314457135,1708367445926,-1000.0,0.000406,15]
[314457137,1708367445935,-300.0,0.000406,15]
[314457139,1708367445945,-160.57533571,0.000406,30]
[314457141,1708367445955,-157.74235033,0.000406,30]
[314457143,1708367445966,-214.828446,0.00040601,14]
[314457145,1708367445975,-151.0,0.00040601,14]
[314457148,1708367445988,-151.0,0.00040601,14]
[314457150,1708367445997,-151.0,0.00040601,14]
[314457152,1708367446007,-151.0,0.00040601,14]
[314457153,1708367446017,-151.0,0.00040601,14]
[314457156,1708367446027,-151.0,0.00040601,14]
[314457158,1708367446037,-151.0,0.00040601,14]
[314457160,1708367446046,-258.176511,0.00040601,14]
[314457162,1708367446055,-151.0,0.00040601,14]
[314457164,1708367446065,-151.0,0.00040601,14]
[314457166,1708367446075,-151.0,0.00040601,14]
[314457168,1708367446084,-151.0,0.00040601,14]
[314457170,1708367446093,-151.0,0.00040601,14]
[314457172,1708367446103,-289.477608,0.00040601,14]
[314457174,1708367446112,-151.0,0.00040601,14]
[314457175,1708367446121,-151.0,0.00040601,14]
[314457178,1708367446131,-151.0,0.00040601,14]
[314457180,1708367446140,-151.0,0.00040601,14]
[314457182,1708367446150,-151.0,0.00040601,14]
[314457184,1708367446159,-151.0,0.00040601,14]
[314457186,1708367446168,-224.694903,0.00040601,14]
[314457188,1708367446178,-224.694903,0.00040601,14]
[314457190,1708367446187,-224.694903,0.00040601,14]
[314457192,1708367446195,-224.694903,0.00040601,14]
[314457194,1708367446208,-224.694903,0.00040601,14]
[314457196,1708367446218,-224.694903,0.00040601,14]
[314457218,1708367446420,-151.0,0.00040601,14]
[314457221,1708367446431,-201.700519,0.00040601,14]
[314457223,1708367446440,-476.791133,0.00040601,14]
[314457225,1708367446449,-476.791133,0.00040601,14]
[314457227,1708367446459,-476.791133,0.00040601,14]
[314457229,1708367446468,-476.791133,0.00040601,14]
[314457231,1708367446478,-476.791133,0.00040601,14]
[314457233,1708367446487,-476.791133,0.00040601,14]
[314457235,1708367446498,-232.126709,0.00040601,14]
[314457237,1708367446508,-232.126709,0.00040601,14]
[314457238,1708367446517,-232.126709,0.00040601,14]
[314457239,1708367446527,-232.126709,0.00040601,14]
[314457240,1708367446536,-232.126709,0.00040601,14]
[314457241,1708367446545,-232.126709,0.00040601,14]
[314457242,1708367446555,-151.0,0.00040601,14]
[314457243,1708367446564,-151.0,0.00040601,14]
[314457244,1708367446574,-151.0,0.00040601,14]
[314457245,1708367446583,-151.0,0.00040601,14]
[314457246,1708367446593,-151.0,0.00040601,14]
[314457247,1708367446603,-151.0,0.00040601,14]
[314457248,1708367446614,-151.0,0.00040601,14]
[314457249,1708367446631,-151.0,0.00040601,14]
[314457250,1708367446640,-151.0,0.00040601,14]
[314457251,1708367446650,-167.941296,0.00040601,14]
[314457252,1708367446660,-167.941296,0.00040601,14]
[314457253,1708367446671,-167.941296,0.00040601,14]
[314457255,1708367446681,-167.941296,0.00040601,14]
[314457257,1708367446691,-167.941296,0.00040601,14]
[314457259,1708367446702,-167.941296,0.00040601,14]
[314457261,1708367446712,-151.0,0.00040601,2]
[314457263,1708367446722,-151.0,0.00040601,2]
[314457265,1708367446732,-151.0,0.00040601,2]
[314457268,1708367446741,-151.0,0.00040601,14]
[314457270,1708367446751,-151.0,0.00040601,14]
[314457272,1708367446760,-151.0,0.00040601,14]
[314457274,1708367446770,-152.300074,0.00040601,14]
[314457276,1708367446779,-303.481413,0.00040601,14]
[314457278,1708367446788,-303.481413,0.00040601,14]
[314457280,1708367446797,-303.481413,0.00040601,14]
[314457282,1708367446806,-303.481413,0.00040601,14]
[314457284,1708367446816,-303.481413,0.00040601,14]
[314457286,1708367446826,-303.481413,0.00040601,14]
[314457288,1708367446835,-586.646416,0.00040601,14]
[314457289,1708367446845,-586.646416,0.00040601,14]
[314457291,1708367446854,-586.646416,0.00040601,14]
[314457293,1708367446863,-586.646416,0.00040601,14]
[314457296,1708367446873,-586.646416,0.00040601,14]
[314457298,1708367446882,-586.646416,0.00040601,14]
[314457299,1708367446891,-151.0,0.00040601,14]
[314457301,1708367446900,-357.651493,0.00040601,14]
[314457304,1708367446910,-357.651493,0.00040601,14]
[314457306,1708367446919,-301.483431,0.00040601,14]
[314457307,1708367446929,-301.483431,0.00040601,14]
[314457309,1708367446938,-357.651493,0.00040601,14]
[314457312,1708367446947,-301.483431,0.00040601,14]
[314457313,1708367446956,-357.651493,0.00040601,14]
[314457315,1708367446967,-357.651493,0.00040601,14]
[314457318,1708367446977,-357.651493,0.00040601,14]
[314457320,1708367446986,-301.483431,0.00040601,14]
[314457322,1708367446995,-301.483431,0.00040601,14]
[314457324,1708367447004,-301.483431,0.00040601,14]
[314457325,1708367447013,-197.637474,0.00040601,14]
[314457327,1708367447023,-197.637474,0.00040601,14]
[314457329,1708367447032,-197.637474,0.00040601,14]
[314457332,1708367447041,-151.0,0.00040601,14]
[314457334,1708367447051,-151.0,0.00040601,14]
[314457335,1708367447060,-151.0,0.00040601,14]
[314457337,1708367447070,-197.637474,0.00040601,14]
[314457339,1708367447079,-197.637474,0.00040601,14]
[314457342,1708367447089,-197.637474,0.00040601,14]
[314457344,1708367447098,-233.243604,0.00040601,14]
[314457345,1708367447107,-151.0,0.00040601,14]
[314457348,1708367447117,-151.0,0.00040601,14]
[314457349,1708367447126,-151.0,0.00040601,14]
[314457351,1708367447136,-151.0,0.00040601,14]
[314457353,1708367447145,-151.0,0.00040601,14]
[314457355,1708367447154,-995.33519,0.00040601,14]
[314457357,1708367447163,-995.33519,0.00040601,14]
[314457359,1708367447173,-151.0,0.00040601,14]
[314457361,1708367447182,-151.0,0.00040601,14]
[314457363,1708367447191,-151.0,0.00040602,14]
[314457365,1708367447200,-163.0,0.00040602,14]
[314457368,1708367447213,-151.0,0.00040602,7]
[314457370,1708367447222,-151.0,0.00040602,14]
[314457372,1708367447231,-180.34886,0.00040607,2]
[314457374,1708367447243,-150.0,0.00040622,3]
[314457376,1708367447252,-168.15336397,0.00040622,3]
[314457378,1708367447262,-150.0,0.00040622,3]
[314457380,1708367447271,-168.15336397,0.00040622,3]
[314457382,1708367447281,-1881.758142,0.00040623,14]
[314457384,1708367447290,-895.549516,0.00040623,14]
[314457387,1708367447300,-895.549516,0.00040623,14]
[314457389,1708367447309,-1881.758142,0.00040623,14]
[314457391,1708367447319,-527.07330151,0.00040623,3]
[314457393,1708367447328,-20000.0,0.00040623,2]
[314457395,1708367447337,-1278060.92803162,0.00040623,7]
[314457397,1708367447346,-935.78457528,0.00040623,4]
[314457399,1708367447355,-1713995.42756907,0.00040623,7]
[314457400,1708367447365,-13686.11700492,0.00040623,7]
[314457403,1708367447374,-3504.16152424,0.00040623,4]
[314457405,1708367447383,-150.0,0.00040623,30]
[314457406,1708367447392,-238.560631,0.00040623,30]
[314457409,1708367447402,-300.0,0.00040623,35]
[314457411,1708367447411,-300.0,0.00040623,36]
[314457413,1708367447421,-1991.917289,0.00040623,30]
[314457415,1708367447430,-155.64402528,0.00040623,60]
[314457417,1708367447440,-1000.0,0.00040667,2]
[314457419,1708367447449,-1127.02913656,0.00040667,4]
[314457421,1708367447459,-536.16788263,0.00040667,2]
[314457423,1708367447468,-300.0,0.00040667,2]
[314457425,1708367447479,-300.0,0.00040667,2]
[314457427,1708367447488,-300.0,0.00040667,2]
[314457429,1708367447498,-300.0,0.00040667,2]
[314457431,1708367447507,-300.0,0.00040667,2]
[314457433,1708367447516,-300.0,0.00040667,2]
[314457435,1708367447525,-300.0,0.00040667,2]
[314457437,1708367447535,-321.45276217,0.00040667,2]
[314457439,1708367447544,-48319.53,0.000407,7]
[314457440,1708367447554,-20886.16,0.000407,7]
[314457442,1708367447563,-69526.28,0.000407,7]
[314457445,1708367447573,-1321.46,0.000407,7]
[314457447,1708367447583,-645.36,0.000407,30]
[314457449,1708367447592,-2000.0,0.00040712,2]
[314457451,1708367447601,-200.0,0.00040712,2]
[314457452,1708367447610,-250.0,0.00040821,2]
[314457455,1708367447625,-164.0,0.00040848,7]
[314457457,1708367447635,-500.0,0.000409,15]
[314457459,1708367447644,-164.0,0.00040985,7]
[314457461,1708367447655,-200.0,0.00040987,20]
[314457463,1708367447664,-2626.9054836,0.00041,120]
[314457465,1708367447674,-153.05281996,0.00041039,10]
[314457467,1708367447684,-168.15336397,0.00041095,3]
[314457469,1708367447693,-150.0,0.00041095,3]
[314457471,1708367447704,-260.30003262,0.00041096,2]
[314457473,1708367447713,-3015.45,0.00041096,2]
[314457475,1708367447723,-180.34886,0.00041097,30]
[314457477,1708367447732,-52677.55377614,0.000411,2]
[314457479,1708367447742,-198.076642,0.000411,14]
[314457481,1708367447752,-151.0,0.000411,14]
[314457483,1708367447761,-152.97,0.000411,4]
[314457485,1708367447770,-152.97,0.000411,4]
[314457487,1708367447780,-152.97,0.000411,4]
[314457489,1708367447789,-152.97,0.000411,4]
[314457491,1708367447798,-152.97,0.000411,4]
[314457493,1708367447807,-152.97,0.000411,4]
[314457495,1708367447816,-152.97,0.000411,4]
[314457497,1708367447825,-152.97,0.000411,4]
[314457499,1708367447835,-151.0,0.000411,14]
[314457501,1708367447844,-151.0,0.000411,14]
[314457503,1708367447853,-151.0,0.000411,14]
[314457505,1708367447862,-224.694903,0.000411,14]
[314457507,1708367447871,-1692.44,0.000411,4]
[314457509,1708367447881,-1692.44,0.000411,4]
[314457511,1708367447890,-1692.44,0.000411,4]
[314457513,1708367447899,-1692.44,0.000411,4]
[314457515,1708367447908,-1692.44,0.000411,4]
[314457517,1708367447917,-1692.44,0.000411,4]
[314457519,1708367447926,-1692.44,0.000411,4]
[314457521,1708367447935,-1692.44,0.000411,4]
[314457523,1708367447945,-1692.44,0.000411,4]
[314457525,1708367447954,-1692.44,0.000411,4]
[314457527,1708367447964,-1692.44,0.000411,4]
[314457529,1708367447974,-1692.44,0.000411,4]
[314457531,1708367447985,-1692.44,0.000411,4]
[314457533,1708367447994,-1692.44,0.000411,4]
[314457535,1708367448003,-1692.44,0.000411,4]
[314457537,1708367448012,-1692.44,0.000411,4]
[314457539,1708367448022,-1692.44,0.000411,4]
[314457541,1708367448031,-1692.44,0.000411,4]
[314457543,1708367448040,-1692.44,0.000411,4]
[314457545,1708367448050,-1692.44,0.000411,4]
[314457547,1708367448059,-224.694903,0.000411,14]
[314457549,1708367448068,-476.791133,0.000411,14]
[314457551,1708367448077,-476.791133,0.000411,14]
[314457553,1708367448086,-232.126709,0.000411,14]
[314457555,1708367448096,-232.126709,0.000411,14]